Cogmind - Beta 15 @@@ ROGUE MODE // 2025.05.20 @ 21:11:26 Player: ChoccyMilch Result: Smashed by cave-in Performance ------------- Evolutions (0) 0 Regions Visited (1) 200 Robots Destroyed (12) 60 Value Destroyed (245) 245 Prototype IDs (0) 0 Alien Tech Used (0) 0 Bonus (0) 0 TOTAL SCORE: 505 Bonus ------- None Cogmind --------- Core Integrity 0/250 Matter 300/300 Energy 125/125 System Corruption 2% Temperature Cool (0) Movement Walking (120) Location -10/Materials Parts ------- > --- POWER (1) -------- Light Ion Engine > --- PROPULSION (2) --- Aluminum Leg Aluminum Leg > --- UTILITY (2) ------ Improved Heat Sink Small Storage Unit > --- WEAPON (2) ------- Light Assault Rifle Light Assault Rifle > --- INVENTORY (8) ---- Large Storage Unit Small Laser Peak State ------------ > --- POWER ------------ Light Ion Engine > --- PROPULSION ------- Aluminum Leg Aluminum Leg > --- UTILITY ---------- Improved Heat Sink Small Storage Unit > --- WEAPON ----------- Light Assault Rifle Light Assault Rifle > --- INVENTORY -------- Small Laser [Rating: 9] Favorites ----------- Power Light Ion Engine Engine Light Ion Engine Propulsion Light Treads Treads Light Treads Leg Aluminum Leg Utility Small Storage Unit Device Seismic Detector Storage Small Storage Unit Processor Targeting Computer Weapon Light Assault Rifle Ballistic Gun Light Assault Rifle Launcher Grenade Launcher Build | -11 -10 ------- Run | Yrd Mat Slots Evolved . | . . Power . | . . Propulsion . | . . Utility . | . . Weapon . | . . Parts Attached 17 | 6 11 Power 2 | 1 1 Engine 2 | 1 1 Core . | . . Reactor . | . . Propulsion 6 | 2 4 Treads 2 | 2 . Leg 4 | . 4 Wheel . | . . Hover . | . . Flight . | . . Utility 4 | 1 3 Device 2 | . 2 Storage 1 | 1 . Processor 1 | . 1 Hackware . | . . Protection . | . . Artifact . | . . Weapon 5 | 2 3 Energy Gun . | . . Energy Cannon . | . . Ballistic Gun 4 | 2 2 Ballistic Cannon . | . . Launcher 1 | . 1 Special Weapon . | . . Impact Weapon . | . . Slashing Weapon . | . . Piercing Weapon . | . . Special Melee Weapon . | . . Unidentified Prototypes . | . . Parts Lost 7 | . 7 Power 1 | . 1 Propulsion 1 | . 1 Utility 2 | . 2 Weapon 3 | . 3 Highest Loss Streak 5 | . 5 To Critical Strikes . | . . Average Backups 1 | 3 1 Power . | . . Propulsion . | 1 . Utility . | . . Weapon . | 1 . Tool/Special . | . . Unused Backups 2 | . 2 Power . | . . Propulsion 1 | . 1 Utility . | . . Weapon 1 | . 1 Tool/Special . | . . Average Slot Usage (%) 84 | . 84 Engine 8 | . 8 Treads 13 | . 13 Leg 11 | . 11 Device 9 | . 9 Storage 14 | . 14 Processor 2 | . 2 Ballistic Gun 18 | . 18 Launcher 5 | . 5 Peak Build Rating 9 | 6 9 Average Rating 5 | . 6 On Entrance 3 | . 6 Naked Turns . | . . Heaviest Build 13 | 10 13 Greatest Support 40 | 40 40 Greatest Overweight (x) 2 | 1 2 Average Overweight (x) . | . . Largest Inventory Capacity 8 | 8 8 Average Capacity 7 | 6 8 Most Carried 5 | 5 5 Average Carried 1 | 3 1 Final Capacity 8 | 8 8 Final Carried 2 | . 2 Class Distribution -------------------- 84% | Mutant 15% | Scavenger-Mutant Dominant Class ---------------- Mutant | -10/Materials Resources | -11 -10 ----------- Run | Yrd Mat Matter Collected 464 | 234 230 Remotely . | . . Salvage Created 283 | . 283 Parts 23 | . 23 Haulers Intercepted . | . . Recyclers Shooed . | . . Parts Field Recycled . | . . Retrieved Matter . | . . Parts Self-Destructed . | . . Prevented . | . . Kills | -11 -10 ------- Run | Yrd Mat Combat Hostiles Destroyed 7 | . 7 Guns 6 | . 6 AOE 1 | . 1 Classes Destroyed 5 | . 5 Worker 1 | . 1 Builder 2 | . 2 Watcher 2 | . 2 Swarmer 3 | . 3 Grunt 4 | . 4 Best Kill Streak 3 | . 3 Combat Bots Only 3 | . 3 Max Kills in Single Turn 3 | . 3 Gunslinging . | . . Exploded 1 | . 1 Melee . | . . Uniques/NPCs Destroyed . | . . Combat | -11 -10 -------- Run | Yrd Mat Hostile Shots Fired 107 | . 107 Missed 40 | . 40 Hits 67 | . 67 Projectile 67 | . 67 Critical Strikes 2 | . 2 Damage Taken 1034 | . 1034 Core 258 | . 258 Absorbed by Shields . | . . Core Remaining (%) 100 | 100 . Volleys Fired 45 | . 45 Largest 2 | . 2 Hottest 50 | . 50 Shots Fired 64 | . 64 Gun 59 | . 59 Cannon . | . . Launcher 5 | . 5 Special . | . . Kinetic 59 | . 59 Thermal . | . . Explosive 5 | . 5 Electromagnetic . | . . Robot Hit Streak 7 | . 7 Robot Miss Streak 5 | . 5 Penetration Max . | . . Secondary Targets . | . . Shots Hit Robots 38 | . 38 Core Hits 23 | . 23 Critical Kills . | . . Critical Parts Destroyed . | . . Critical Strikes . | . . Melee Attacks . | . . Impact . | . . Slashing . | . . Piercing . | . . Sneak Attacks . | . . Combat Hostiles . | . . Follow-up Attacks . | . . Damage Inflicted 605 | . 605 Guns 322 | . 322 Cannons . | . . Explosions 280 | . 280 Melee . | . . Ramming 3 | . 3 Kinetic 322 | . 322 Thermal . | . . Explosive 280 | . 280 Electromagnetic . | . . Impact . | . . Slashing . | . . Piercing . | . . Highest Corruption 2 | . 2 Average Corruption 2 | . 2 Corruption Purged . | . . Corruption Blocked . | . . Effects 8 | . 8 Message Errors 2 | . 2 Matter Fused 1 | . 1 Heat Flow Errors 1 | . 1 Parts Rejected 1 | . 1 Data Loss (minor) 1 | . 1 Weapon Failures 2 | . 2 Overload Shots . | . . Overflow Damage . | . . Projectiles . | . . Explosions . | . . Melee . | . . Knockbacks . | . . Impact . | . . Kinetic . | . . Secondary . | . . Self-Inflicted Damage 79 | . 79 Shots 3 | . 3 Rammed . | . . Targets Rammed 1 | . 1 Kicked 1 | . 1 Crushed . | . . Highest Temperature 257 | . 257 Average Temperature 35 | . 35 Received Heat Transfer 414 | . 414 Siege Activations . | . . Martial Activations . | . . Shielding Activations . | . . Robots Disrupted . | . . Combat Hostiles . | . . Robots Corrupted . | . . Combat Hostiles . | . . Parts Fried . | . . Impact Corruptions . | . . Robots Melted . | . . Combat Hostiles . | . . Parts Melted . | . . Heat Transferred . | . . Parts Sabotaged . | . . Parts Stolen . | . . Parts Stripped . | . . Power Chain Reactions . | . . Alert | -11 -10 ------- Run | Yrd Mat Maximum Alert Level . | . . Low Security (%) 100 | 100 100 Level 1 . | . . Level 2 . | . . Level 3 . | . . Level 4 . | . . Level 5 . | . . High Security . | . . Max Security . | . . Peak Influence 85 | . 85 Initial . | . . Average 26 | . 28 Influence Increases 270 | . 270 Destroy 0b10 Robot/C 140 | . 140 Destroy 0b10 Robot/NC 25 | . 25 Destroy Leader 44 | . 44 Disable Machine 15 | . 15 Destroy Structure 31 | . 31 Partial Spotted 15 | . 15 Influence Decreases 230 | . 230 Time Decay 176 | . 176 Lost Part 54 | . 54 Squads Dispatched 1 | . 1 Investigation . | . . Extermination . | . . Reinforcement 1 | . 1 Assault . | . . Garrison . | . . Intercept . | . . Searches Triggered . | . . Construction Impeded . | . . Haulers Reinforced . | . . Active Scanning Responses . | . . Cargo Convoy Interrupts . | . . Stealth | -11 -10 --------- Run | Yrd Mat Distress Signals 2 | . 2 Communications Jammed . | . . Distress Signals . | . . Times Spotted 16 | . 16 Peak Tracking Total 7 | . 7 Tactical Retreats . | . . Traps | -11 -10 ------- Run | Yrd Mat Traps Triggered 2 | . 2 Indirectly . | . . Trap Hack Attempts . | . . Triggered . | . . Disarmed . | . . Reprogrammed . | . . Reused . | . . Traps Extracted . | . . Installed . | . . Triggered . | . . Machines | -11 -10 ---------- Run | Yrd Mat Machines Disabled 1 | . 1 Max in Single Turn 1 | . 1 Machines Repaired . | . . Machines Dismantled . | . . Machines Sabotaged . | . . Overloaded Fab Kills . | . . Hacking | -11 -10 --------- Run | Yrd Mat Machines Accessed 1 | . 1 Terminals . | . . Fabricators . | . . Repair Stations . | . . Recycling Units 1 | . 1 Scanalyzers . | . . Garrison Access . | . . Total Hacks 5 | . 5 Successful 2 | . 2 Failed 3 | . 3 Catastrophic . | . . Database Lockouts . | . . Manual . | . . Terminals . | . . Fabricators . | . . Repair Stations . | . . Recycling Units 5 | . 5 Scanalyzers . | . . Garrison Access . | . . Terminal Hacks . | . . Fabricator Hacks . | . . Repair Station Hacks . | . . Recycling Unit Hacks 2 | . 2 Report Inventory 1 | . 1 Retrieve Components 1 | . 1 Scanalyzer . | . . Garrison Access Hacks . | . . Unauthorized Hacks . | . . Terminals . | . . Fabricators . | . . Repair Stations . | . . Recycling Units . | . . Scanalyzers . | . . Garrison Access . | . . Data Cores Recovered . | . . Used . | . . Hacking Detections 1 | . 1 Full Trace Events 1 | . 1 Feedback Events . | . . Feedback Blocked . | . . Robot Schematics Acquired . | . . Robots Built . | . . Authchips . | . . Time . | . . Total Robot Build Rating . | . . Part Schematics Acquired . | . . Parts Built . | . . Authchips . | . . Time . | . . Total Part Build Rating . | . . Parts Repaired . | . . Time . | . . Parts Recycled . | . . Recycled Matter . | . . Retrieved Matter . | . . Retrieved Components 3 | . 3 Parts Scanalyzed . | . . Part Schematics Acquired . | . . Parts Damaged . | . . Bothacking | -11 -10 ------------ Run | Yrd Mat Used RIF Installer . | . . Robots Hacked . | . . Non-combat . | . . Combat . | . . Robot Hacks Applied . | . . Relay Couplers Released . | . . Fabnet Peak Effective % . | . . Robots Rewired . | . . Allies Hacked . | . . Hacks Repelled . | . . Allies | -11 -10 -------- Run | Yrd Mat Total Allies . | . . Largest Group . | . . Highest-Rated Group . | . . Highest-Rated Ally . | . . Total Orders . | . . Ally Attacks . | . . Total Damage . | . . Kills . | . . Allies Corrupted . | . . Allies Melted . | . . Intel | -11 -10 ------- Run | Yrd Mat Active Infowar (turns) 229 | . 229 Seismic 229 | . 229 Robot Analysis Total . | . . Derelict Logs Recovered . | . . Drone Launches . | . . Drone Recoveries . | . . Exploration | -11 -10 ------------- Run | Yrd Mat Turns Passed 505 | 39 466 Spaces Moved 270 | 39 231 Core 47 | 38 9 Treads 119 | 1 118 Legs 104 | . 104 Wheels . | . . Hover . | . . Flight . | . . Fastest Speed 50 | 50 100 Average Speed 130 | 74 140 Slowest Speed 160 | 160 160 Overloaded Moves . | . . Propulsion Burnouts . | . . Robots Hopped . | . . Potential Cave-ins . | . . Cave-ins Triggered 1 | . 1 Exploration Rate (%) 24 | 3 46 Regions Visited 1 Branch Regions . Pre-discovered Areas . | . . Known Exits Taken . | . . Unknown Exits Taken 1 | 1 . Scrap Searched . | . . Spaces Dug . | . . Terrain Destroyed 31 | . 31 Melee . | . . Projectile . | . . AOE 31 | . 31 Terrain Rammed . | . . Walls Destroyed . | . . Machines Disabled . | . . Actions | -11 -10 --------- Run | Yrd Mat Total 368 | 49 319 Wait 13 | . 13 Move 269 | 38 231 Hop . | . . Pick Up 19 | 5 14 Fast Attach 1 | 1 . Attach 14 | 5 9 Detach . | . . Swap 3 | . 3 Drop 3 | . 3 Fire 45 | . 45 Melee . | . . Ram . | . . Kick 1 | . 1 Crush . | . . Escape Stasis . | . . Rewire . | . . Trap . | . . Miscellaneous . | . . Route ------- -11/Scrapyard -10/Materials (discovered 1 exit: [*Min]) History --------- Turn | Location | Event 4 | -11/Scrapyard | Discovered new exit (range 15) 40 | -11/Scrapyard | Entered Materials 287 | -10/Materials | Core integrity fell below 50% 305 | -10/Materials | Build established: Mutant 324 | -10/Materials | Discovered new exit (range 11) 325 | -10/Materials | Lost 5 parts (1p1n1u2w) 395 | -10/Materials | Core integrity fell below 20% 507 | -10/Materials | Crushed by falling debris 507 | -10/Materials | Smashed by cave-in Last Messages --------------- U-05 Engineer works on Matter Filter. R-06 Scavenger collects Wheel. U-05 Engineer works on Matter Filter. W-16 Scout destroyed. U-05 Engineer works on Matter Filter. Acquired 6 matter. U-05 Engineer works on Matter Filter. P:< CDG>DKJPTPYRHY2U9WB PB Acquired Lrg. Storage Unit. 9LZ0CV%UDWOTUS 1PHX2MCWHGB Triggered Explosive Trap. An explosion rips through the floor. The unstable cave ceiling collapses. Crushed by falling debris. [Achievement: Unlikely Earthworm] Important note for Steam players: Cogmind player global achievement rates displayed by Steam are all significantly underreported, in some cases by a huge margin, due to how they are calculated by Valve. Map ----- +----------------------------------------------------+ | | | | | | | | | | | ??????????????????????????????????????????? | | ??????????????????????????????????????????? | | ??????????????????????????????????????????? | | ??????????????????????????????????????????? | | ??????????????????????????????????????????? | | ??????????????????????????????????????????? | | ????????????????????? ???????????????????? | | ???????????????????? ???????????????????? | | ???????????????????? ??? ?????????????? | | ???????????????????? "?? ???????????? | | ???????????????????? """ #?????????? | | ????????????????????# """ #?????????? | | ????????????????????# """ #?????????? | | ????????????? "?????# #?????????? | | ?????????? ?? ""????# #?????????? | | ?????????# [ ????# #?????????? | | ?????????#] """???# ##????????? | | ?????????# """???# #????????? | | ?????????# = """ ??# ** #????????? | | ????????????? ### * #????????? | | ?????????????#### @ #????????? | | ?????????????# #????????? | | ?????????????# "" #######???????????? | | ?????????????# "T #?????????????????? | | ?????????????# "" # #?????????????????? | | ?????????????# #% #?????????????????? | | ?????????????# # #?????????????????? | | ?????????????######## #?????????????????? | | ????????????????????# #??????? #????????? | | ????????############# #?????? #????????? | | ??????? #?????? #????????? | | ??????? #?????? #????????? | | ??????? #?????? ?????????? | | ??????? #?????? ?######??? | | ??????? """" #???###+## ?? | | ???????? """"" *#???# ??? | | ???????? """""" %#???# ^